bitfinex/quotes_SOLUSD_20251119
["timestamp","ask_amount","ask_price","bid_price","bid_amount"]
[1763515869213,8.93410496,141.5,141.46,0.66]
[1763515869411,0.54,141.51,141.45,13.13410496]
[1763515869412,8.93410496,141.48,141.45,4.2]
[1763515869804,8.93410496,141.51,141.46,0.66]
[1763515870234,0.54,141.55,141.49,8.93410496]
[1763515870409,8.93410496,141.54,141.49,13.13410496]
[1763515870729,8.93410496,141.54,141.49,4.2]
[1763515870917,9.47410496,141.54,141.49,13.79410496]
[1763515871122,8.93410496,141.54,141.5,9.59410496]
[1763515871299,27.05506496,141.55,141.5,9.59410496]
[1763515871700,9.47410496,141.54,141.49,13.13410496]
[1763515871924,9.47410496,141.54,141.49,13.79410496]
[1763515872405,9.47410496,141.54,141.5,0.69]
[1763515872600,18.12096,141.55,141.5,9.62410496]
[1763515872601,8.93410496,141.55,141.5,9.62410496]
[1763515873020,8.93410496,141.55,141.51,0.69]
[1763515873426,9.47410496,141.56,141.51,9.62410496]
[1763515873806,32.10978769,141.58,141.52,8.93410496]
[1763515873807,8.93410496,141.57,141.52,8.93410496]
[1763515874036,27.05506496,141.58,141.53,13.13410496]
[1763515874227,27.05506496,141.58,141.53,13.82410496]
[1763515874417,27.05506496,141.58,141.53,13.13410496]
[1763515874619,27.05506496,141.58,141.54,0.69]
[1763515874829,9.47410496,141.59,141.54,9.62410496]
[1763515875020,8.93410496,141.58,141.54,0.69]
[1763515878814,8.93410496,141.57,141.54,0.69]
[1763515880127,9.47410496,141.58,141.54,0.69]
[1763515880413,8.93410496,141.58,141.54,0.69]
[1763515880616,18.12096,141.59,141.54,0.69]
[1763515880817,27.05506496,141.59,141.54,9.62410496]
[1763515881321,8.93410496,141.6,141.55,9.62410496]
[1763515881625,8.93410496,141.57,141.56,4.2]
[1763515881824,8.93410496,141.57,141.55,4.2]
[1763515882126,8.93410496,141.58,141.55,4.2]
[1763515884928,8.93410496,141.57,141.55,4.2]
[1763515885133,8.93410496,141.56,141.53,4.2]
[1763515885330,8.93410496,141.55,141.53,4.2]
[1763515885851,0.54,141.56,141.53,4.2]
[1763515885852,8.93410496,141.56,141.53,4.2]
[1763515886043,8.93410496,141.58,141.54,0.71]
[1763515886935,8.93410496,141.57,141.54,0.71]
[1763515887136,8.93410496,141.57,141.53,4.2]
[1763515887336,8.93410496,141.56,141.53,4.2]
[1763515887627,8.93410496,141.56,141.53,4.91]
[1763515888246,8.93410496,141.56,141.53,4.2]
[1763515888437,8.93410496,141.56,141.53,4.91]
[1763515891041,8.93410496,141.57,141.54,0.71]
[1763515891245,0.54,141.59,141.54,0.71]
[1763515891431,8.93410496,141.58,141.54,0.71]
[1763515891637,8.93410496,141.59,141.54,27.76506496]
[1763515892059,8.93410496,141.59,141.55,0.71]
[1763515892461,9.47410496,141.59,141.55,0.71]
[1763515892962,8.93410496,141.59,141.55,0.71]
[1763515893852,8.93410496,141.57,141.53,4.2]
[1763515894055,4.2,141.61,141.53,4.2]
[1763515894056,8.93410496,141.56,141.53,4.2]
[1763515894365,8.93410496,141.55,141.53,4.2]
[1763515894555,8.93410496,141.54,141.52,0.71]
[1763515894940,8.93410496,141.54,141.5,4.2]
[1763515895147,8.93410496,141.53,141.5,4.91]
[1763515895666,18.12096,141.56,141.51,9.64410496]
[1763515895841,8.93410496,141.56,141.51,9.64410496]
[1763515896043,18.12096,141.57,141.52,0.71]
[1763515896350,8.93410496,141.54,141.52,0.71]
[1763515896664,8.93410496,141.54,141.5,4.2]
[1763515896853,8.93410496,141.54,141.52,0.71]
[1763515899961,8.93410496,141.55,141.52,0.71]
[1763515900444,18.12096,141.57,141.52,0.71]
[1763515900645,8.93410496,141.56,141.52,0.71]
[1763515900839,8.93410496,141.56,141.53,4.2]
[1763515901044,8.93410496,141.56,141.54,0.71]
[1763515902256,8.93410496,141.57,141.54,0.71]
[1763515903553,4.2,141.59,141.53,4.2]
[1763515903873,8.93410496,141.54,141.53,4.2]
[1763515904443,9.78882769,141.57,141.53,4.88]
[1763515904645,8.93410496,141.55,141.53,4.88]
[1763515905045,8.93410496,141.54,141.53,4.2]
[1763515905681,8.93410496,141.54,141.5,4.2]
[1763515905848,8.93410496,141.53,141.5,4.88]
[1763515906048,8.93410496,141.52,141.5,4.88]
[1763515907967,8.93410496,141.53,141.5,4.2]
[1763515908279,8.93410496,141.55,141.51,0.68]
[1763515909344,8.93410496,141.54,141.51,0.68]
[1763515909551,8.93410496,141.53,141.51,0.68]
[1763515911176,0.54,141.56,141.51,0.68]
[1763515911376,8.93410496,141.53,141.51,0.68]
[1763515912473,8.93410496,141.52,141.5,4.2]
[1763515912859,0.54,141.53,141.5,4.2]
[1763515912860,8.93410496,141.51,141.5,4.2]
[1763515913173,8.93410496,141.51,141.47,4.88]
[1763515913369,8.93410496,141.49,141.47,4.2]
[1763515913574,8.93410496,141.5,141.48,0.68]
[1763515913950,0.54,141.52,141.48,0.68]
[1763515914151,8.93410496,141.52,141.48,0.68]
[1763515915077,8.93410496,141.5,141.45,8.93410496]
[1763515915258,8.93410496,141.5,141.45,4.2]
[1763515915462,8.93410496,141.47,141.45,4.2]
[1763515915680,8.93410496,141.46,141.42,4.88]
[1763515915854,8.93410496,141.43,141.39,0.68]
[1763515916061,8.93410496,141.4,141.37,0.68]
[1763515916260,8.93410496,141.39,141.37,0.68]
[1763515916458,8.93410496,141.4,141.37,0.68]
[1763515916759,8.93410496,141.41,141.37,0.68]
[1763515917275,8.93410496,141.42,141.37,9.61410496]
[1763515917482,8.93410496,141.43,141.38,8.93410496]
[1763515917649,8.93410496,141.43,141.39,0.68]
[1763515917854,8.93410496,141.42,141.4,4.2]
[1763515918054,8.93410496,141.43,141.4,4.2]
[1763515918255,5.94601109,141.54,141.37,18.12096]
[1763515918256,8.93410496,141.41,141.37,18.12096]
[1763515918478,8.93410496,141.39,141.37,4.2]
[1763515918682,8.93410496,141.39,141.37,4.88]
[1763515918859,8.93410496,141.38,141.34,0.88]
[1763515919056,8.93410496,141.38,141.35,4.22]
[1763515919257,0.54,141.4,141.35,4.9]
[1763515919258,8.93410496,141.37,141.35,4.9]
[1763515919556,8.93410496,141.38,141.35,4.9]
[1763515920066,0.54,141.4,141.35,4.22]
[1763515920262,8.93410496,141.39,141.36,0.68]
[1763515921064,22.32096,141.45,141.34,0.2]
[1763515921065,8.93410496,141.37,141.34,0.2]
[1763515921267,8.93410496,141.36,141.34,4.42]
[1763515921482,8.93410496,141.36,141.34,5.1]
[1763515921983,8.93410496,141.37,141.34,5.1]
[1763515922381,8.93410496,141.35,141.34,0.2]
[1763515923572,0.54,141.35,141.34,0.2]
[1763515923794,9.47410496,141.35,141.34,0.2]
[1763515924667,0.54,141.41,141.34,0.88]
[1763515924868,5.94601109,141.49,141.34,0.88]
[1763515924869,9.78882769,141.39,141.35,4.22]
[1763515925078,8.93410496,141.36,141.35,4.22]
[1763515925285,0.54,141.38,141.34,0.2]
[1763515925582,27.90978769,141.41,141.34,0.2]
[1763515925790,9.78882769,141.39,141.34,0.2]
[1763515926167,0.54,141.38,141.34,0.2]
[1763515926492,8.93410496,141.35,141.34,0.2]
[1763515928688,8.93410496,141.36,141.34,0.2]
[1763515928893,5.35269839,141.35,141.34,0.2]
[1763515929400,15.68152608,141.35,141.34,0.2]
[1763515930968,15.68152608,141.35,141.33,0.2]
[1763515930969,33.80248608,141.35,141.33,0.2]
[1763515931173,9.78882769,141.33,141.3,0.2]
[1763515931395,15.14152608,141.31,141.3,0.2]
[1763515931601,33.26248608,141.31,141.3,0.2]
[1763515931776,33.80248608,141.31,141.3,0.2]
[1763515932475,39.15518447,141.31,141.29,0.2]
[1763515932683,29.36635678,141.3,141.29,0.2]
[1763515932993,24.01365839,141.3,141.29,0.2]
[1763515933195,27.90978769,141.28,141.26,0.2]
[1763515933370,33.26248608,141.28,141.26,0.2]
[1763515933566,33.80248608,141.28,141.26,0.2]
[1763515934074,33.26248608,141.28,141.26,0.2]
[1763515934271,2.0,141.32,141.27,0.89]
[1763515934272,0.54,141.32,141.27,0.89]
[1763515934477,5.35269839,141.28,141.27,0.89]
[1763515935797,5.35269839,141.29,141.27,0.89]
[1763515936110,5.35269839,141.3,141.28,0.69]
[1763515936480,5.35269839,141.31,141.28,0.69]
[1763515936793,5.35269839,141.31,141.28,4.91]
[1763515937286,5.35269839,141.31,141.29,0.69]
[1763515937896,5.35269839,141.3,141.29,0.69]
[1763515938200,5.35269839,141.3,141.27,0.2]
[1763515938201,5.35269839,141.3,141.27,0.89]
[1763515938399,0.54,141.33,141.27,0.2]
[1763515938604,5.35269839,141.28,141.27,0.89]
[1763515940587,9.78882769,141.31,141.27,0.89]
[1763515940794,5.35269839,141.29,141.28,0.69]
[1763515941395,9.78882769,141.31,141.28,6.04269839]
[1763515941605,9.78882769,141.31,141.28,5.35269839]
[1763515941906,27.90978769,141.34,141.3,5.35269839]
[1763515942199,28.44978769,141.34,141.31,5.35269839]
[1763515942496,9.78882769,141.32,141.31,5.35269839]
[1763515942795,9.78882769,141.32,141.3,5.35269839]
[1763515943282,10.32882769,141.32,141.3,5.35269839]
[1763515943608,10.32882769,141.32,141.27,0.2]
[1763515943609,9.78882769,141.32,141.29,5.35269839]
[1763515943783,0.54,141.31,141.28,5.35269839]
[1763515944404,0.54,141.31,141.29,5.35269839]
[1763515944577,9.78882769,141.29,141.27,0.2]
[1763515945083,10.32882769,141.29,141.27,0.2]
[1763515945408,9.78882769,141.29,141.27,5.55269839]
[1763515945699,9.78882769,141.29,141.27,0.2]
[1763515945888,9.78882769,141.29,141.27,5.55269839]
[1763515946479,18.12096,141.3,141.27,0.2]
[1763515946715,15.14152608,141.34,141.29,5.35269839]
[1763515946883,9.78882769,141.32,141.29,5.35269839]
[1763515947602,27.90978769,141.33,141.31,5.35269839]
[1763515947820,9.78882769,141.33,141.31,5.35269839]
[1763515948202,9.78882769,141.33,141.3,6.01269839]
[1763515948803,9.78882769,141.33,141.3,5.35269839]
[1763515949012,27.90978769,141.33,141.31,5.35269839]
[1763515949186,9.78882769,141.33,141.31,5.35269839]
[1763515949384,9.78882769,141.34,141.31,5.35269839]
[1763515950009,0.54,141.33,141.27,0.2]
[1763515950185,9.78882769,141.32,141.29,5.35269839]
[1763515950394,9.78882769,141.32,141.28,5.35269839]
[1763515950581,10.32882769,141.32,141.28,5.35269839]
[1763515950778,9.78882769,141.32,141.28,6.01269839]
[1763515951003,9.78882769,141.32,141.3,5.35269839]
[1763515951311,27.90978769,141.35,141.31,5.35269839]
[1763515951815,28.44978769,141.35,141.31,5.35269839]
[1763515952123,9.78882769,141.33,141.3,5.35269839]
[1763515952596,9.78882769,141.33,141.3,6.01269839]
[1763515952795,9.78882769,141.33,141.29,0.66]
[1763515952998,10.32882769,141.33,141.3,5.35269839]
[1763515953384,10.32882769,141.33,141.27,5.08]
[1763515953385,18.12096,141.32,141.29,5.35269839]
[1763515953615,9.78882769,141.31,141.28,5.35269839]
[1763515953990,9.78882769,141.31,141.28,6.01269839]
[1763515954186,9.78882769,141.31,141.27,0.2]
[1763515954400,10.32882769,141.31,141.27,5.55269839]
[1763515954809,10.32882769,141.31,141.27,6.21269839]
[1763515954988,10.32882769,141.31,141.27,5.55269839]
[1763515955419,15.02178793,141.31,141.27,5.55269839]
[1763515956326,10.32882769,141.31,141.27,6.21269839]
[1763515956487,9.78882769,141.29,141.27,0.2]
[1763515957094,9.78882769,141.31,141.27,5.55269839]
[1763515957307,4.70347141,141.3,141.27,5.55269839]
[1763515957493,0.54,141.3,141.27,0.2]
[1763515958092,4.70709483,141.29,141.27,0.2]
[1763515958297,0.54,141.3,141.27,0.2]
[1763515958496,4.70720098,141.29,141.27,0.2]
[1763515958693,9.78882769,141.31,141.27,0.2]
[1763515958996,10.16601109,141.33,141.29,5.35269839]
[1763515958997,9.78882769,141.3,141.29,5.35269839]
[1763515960210,14.5100186,141.3,141.29,5.35269839]
[1763515962722,14.5100186,141.3,141.29,6.06269839]
[1763515962922,9.78882769,141.3,141.29,6.06269839]
[1763515963298,14.52101266,141.3,141.29,5.35269839]
[1763515963508,5.94601109,141.34,141.29,6.06269839]
[1763515963723,4.73407021,141.33,141.32,5.35269839]
[1763515964017,9.78882769,141.38,141.32,5.35269839]
[1763515964234,4.7379608,141.37,141.33,0.71]
[1763515964396,0.54,141.41,141.36,5.35269839]
[1763515964720,4.73825915,141.4,141.38,5.35269839]
[1763515964899,10.090876,141.39,141.34,5.35269839]
[1763515965226,9.78882769,141.37,141.34,5.35269839]
[1763515965431,9.78882769,141.37,141.34,6.06269839]
[1763515965600,9.78882769,141.37,141.35,5.35269839]
[1763515965800,9.78882769,141.39,141.35,5.35269839]
[1763515965995,4.73840368,141.38,141.35,5.35269839]
[1763515966223,10.32882769,141.39,141.35,5.35269839]
[1763515966428,4.73825821,141.38,141.35,5.35269839]
[1763515966624,4.73825821,141.37,141.34,6.06269839]
[1763515966826,10.32882769,141.39,141.35,5.35269839]
[1763515966997,4.73941841,141.38,141.35,5.35269839]
[1763515967196,4.73941841,141.37,141.34,5.35269839]
[1763515967500,0.54,141.38,141.34,6.06269839]
[1763515967706,4.74153229,141.37,141.34,6.06269839]
[1763515967903,0.54,141.38,141.34,5.35269839]
[1763515968101,4.74153924,141.37,141.34,5.35269839]
[1763515968303,0.54,141.38,141.34,5.35269839]
[1763515968506,22.86277609,141.37,141.32,0.71]
[1763515968714,14.53011091,141.36,141.3,0.71]
[1763515968907,9.78882769,141.34,141.31,5.35269839]
[1763515969316,9.78882769,141.34,141.31,6.06269839]
[1763515969493,9.78882769,141.36,141.31,6.06269839]
[1763515969696,9.78882769,141.34,141.31,6.06269839]
[1763515970121,9.78882769,141.34,141.31,5.35269839]
[1763515970302,9.78882769,141.34,141.31,6.06269839]
[1763515970505,9.78882769,141.32,141.28,5.35269839]
[1763515970708,9.78882769,141.3,141.27,6.26269839]
[1763515971823,10.32882769,141.3,141.27,0.2]
[1763515972123,9.78882769,141.3,141.27,0.2]
[1763515972431,9.78882769,141.3,141.27,0.91]
[1763515972727,9.78882769,141.3,141.27,0.2]
[1763515972924,9.78882769,141.3,141.27,5.55269839]
[1763515973123,9.78882769,141.3,141.27,0.2]
[1763515973423,9.78882769,141.3,141.27,6.26269839]
[1763515975828,10.32882769,141.3,141.27,5.55269839]
[1763515976028,9.78882769,141.3,141.27,5.55269839]
[1763515976603,9.78882769,141.3,141.27,6.26269839]
[1763515977644,9.78882769,141.3,141.28,5.35269839]
[1763515978134,9.78882769,141.31,141.29,6.06269839]
[1763515978825,18.12096,141.31,141.28,5.35269839]
[1763515979210,18.12096,141.31,141.28,6.06269839]
[1763515979617,18.12096,141.31,141.29,5.35269839]
[1763515980232,9.78882769,141.3,141.28,6.06269839]
[1763515980438,9.78882769,141.28,141.27,0.2]
[1763515980728,33.80248608,141.28,141.27,0.2]
[1763515980929,40.50053363,141.28,141.27,0.1]
[1763515981242,35.26607147,141.28,141.27,0.1]
[1763515982849,33.20686429,141.28,141.27,0.1]
[1763515983010,33.81259971,141.28,141.27,0.1]
[1763515983950,38.56172282,141.28,141.27,0.1]
[1763515984159,33.81259971,141.28,141.27,0.1]
[1763515984454,38.56203718,141.28,141.27,0.1]
[1763515984743,38.56227207,141.28,141.27,0.1]
[1763515984934,33.19946005,141.28,141.27,0.1]
[1763515985134,33.81259971,141.28,141.27,0.1]
[1763515985441,27.90978769,141.28,141.27,0.1]
[1763515986533,33.71259971,141.28,141.27,0.1]
[1763515986944,38.46149425,141.28,141.27,0.1]
[1763515987151,33.71259971,141.28,141.27,0.1]
[1763515987740,28.34978769,141.28,141.27,0.1]
[1763515987944,33.71259971,141.28,141.27,0.1]
[1763515988840,37.3115787,141.28,141.27,0.1]
[1763515990164,37.3115787,141.28,141.23,0.2]
[1763515990165,11.78882769,141.24,141.23,0.16]
[1763515990357,11.78882769,141.22,141.21,0.2]
[1763515990564,18.12096,141.13,141.12,0.2]
[1763515990725,41.0915787,141.13,141.12,0.2]
[1763515990925,45.82548617,141.13,141.12,0.2]
[1763515991266,45.82548617,141.13,140.87,17.02]
[1763515991267,9.78882769,141.05,141.03,0.71]
[1763515991442,18.7506187,141.05,141.01,0.71]
[1763515991649,18.7506187,141.02,140.98,0.71]
[1763515992048,18.7506187,141.0,140.98,0.71]
[1763515992360,8.96179101,140.99,140.97,0.2]
[1763515992572,24.9906187,140.98,140.97,0.2]
[1763515992857,9.78882769,140.9,140.86,0.67]
[1763515993066,27.90978769,140.86,140.85,0.2]
[1763515993245,41.1115787,140.86,140.85,0.2]
[1763515993957,2.0,140.93,140.85,0.2]
[1763515994158,18.12096,140.93,140.89,8.96179101]
[1763515994336,27.90978769,140.92,140.89,8.96179101]
[1763515994537,13.20179101,140.95,140.9,0.67]
[1763515994538,9.78882769,140.94,140.9,0.67]
[1763515994760,9.78882769,140.94,140.93,8.96179101]
[1763515994938,9.78882769,140.96,140.91,8.96179101]
[1763515995133,27.90978769,140.96,140.92,0.67]
[1763515995359,8.96179101,140.95,140.9,9.63179101]
[1763515995561,9.78882769,140.91,140.87,0.67]
[1763515995874,9.78882769,140.91,140.88,8.96179101]
[1763515996038,9.78882769,140.92,140.88,8.96179101]
[1763515996239,9.78882769,140.92,140.89,0.67]
[1763515997568,9.78882769,140.92,140.91,8.96179101]
[1763515998063,9.78882769,140.93,140.91,0.67]
[1763515998250,14.02882769,140.93,140.88,9.63179101]
[1763515998569,22.9906187,140.93,140.88,9.63179101]
[1763515998745,22.9906187,140.93,140.89,0.67]
[1763515998936,22.9906187,140.93,140.88,8.96179101]
[1763515999142,22.9906187,140.93,140.88,9.63179101]
[1763515999347,22.9906187,140.93,140.89,0.67]
[1763515999739,14.02882769,140.93,140.89,0.67]
[1763516000139,9.78882769,140.93,140.9,8.96179101]
[1763516000347,9.78882769,140.95,140.92,8.96179101]
[1763516000644,9.78882769,140.95,140.93,9.63179101]
[1763516000955,9.78882769,140.95,140.93,0.67]
[1763516007057,18.12096,140.99,140.94,8.96179101]
[1763516007259,9.78882769,140.98,140.96,8.96179101]
[1763516007472,4.24,141.01,140.97,9.66179101]
[1763516007676,9.78882769,141.0,140.95,8.96179101]
[1763516007970,18.7506187,141.0,140.96,0.7]
[1763516008456,18.7506187,141.0,140.96,9.66179101]
[1763516008457,14.04882769,141.0,140.96,9.66179101]
[1763516008842,4.26,141.02,140.98,8.96179101]
[1763516009062,4.26,141.03,140.97,0.7]
[1763516009292,4.26,141.03,141.0,8.96179101]
[1763516009487,9.78882769,141.02,141.0,8.96179101]
[1763516009663,9.78882769,141.02,141.01,0.7]
[1763516009981,9.78882769,141.04,141.01,9.66179101]
[1763516010222,9.78882769,141.04,141.02,8.96179101]
[1763516010356,9.78882769,141.04,141.02,0.7]
[1763516011374,9.78882769,141.04,141.02,9.66179101]
[1763516011576,14.04882769,141.07,141.03,8.96179101]
[1763516011788,14.04882769,141.07,141.03,9.66179101]
[1763516011974,14.04882769,141.07,141.04,0.7]
[1763516013780,14.04882769,141.07,140.43,51.40683248]
[1763516013781,18.7506187,141.05,141.01,0.7]
[1763516013997,9.78882769,141.05,141.01,0.7]
[1763516015384,9.78882769,141.05,141.01,9.66179101]
[1763516015886,9.78882769,141.05,141.02,9.66179101]
[1763516016088,9.78882769,141.05,141.02,0.7]
[1763516017785,9.78882769,141.05,140.97,22.36096]
[1763516017786,9.78882769,141.05,141.0,0.7]
[1763516018111,14.02882769,141.05,141.0,8.96179101]
[1763516018314,14.02882769,141.05,141.01,0.7]
[1763516018705,14.02882769,141.05,141.01,9.66179101]
[1763516019095,14.02882769,141.05,141.02,0.7]
[1763516020506,9.78882769,141.05,141.02,0.7]
[1763516020707,14.02882769,141.05,140.96,18.12096]
[1763516020890,14.02882769,141.05,140.96,0.7]
[1763516020891,18.7506187,141.01,140.96,0.7]
[1763516021096,22.9906187,141.01,140.97,0.7]
[1763516021294,14.02882769,141.01,140.97,0.7]
[1763516021806,4.24,141.03,141.0,8.96179101]
[1763516022007,4.24,141.03,141.01,8.96179101]
[1763516022194,14.02882769,141.05,141.02,0.7]
[1763516023501,22.9906187,141.05,141.02,0.7]
[1763516024616,27.90978769,141.01,140.93,18.12096]
[1763516024812,27.90978769,141.01,140.81,0.1]
[1763516024813,27.90978769,140.93,140.88,8.96179101]
[1763516025027,9.78882769,140.94,140.91,8.96179101]
[1763516025316,2.0,141.03,140.93,8.96179101]
[1763516025317,8.96179101,140.98,140.93,8.96179101]
[1763516025526,9.78882769,140.96,140.93,8.96179101]
[1763516025724,9.78882769,140.96,140.94,0.72]
[1763516026187,9.78882769,140.94,140.92,0.72]
[1763516027685,9.78882769,140.94,140.89,8.96179101]
[1763516027893,4.26,140.93,140.89,9.68179101]
[1763516028094,4.26,140.93,140.9,0.72]
[1763516030197,9.78882769,140.92,140.91,8.96179101]
[1763516030593,9.78882769,140.92,140.91,9.68179101]
[1763516031114,9.78882769,140.92,140.91,0.72]
[1763516031690,9.78882769,140.92,140.89,9.68179101]
[1763516032215,9.78882769,140.92,140.9,0.72]
[1763516032510,4.26,140.93,140.86,0.1]
[1763516032511,4.26,140.91,140.86,0.1]
[1763516032814,9.78882769,140.88,140.86,0.1]
[1763516033018,14.04882769,140.87,140.86,0.1]
[1763516033310,18.12096,140.9,140.86,9.06179101]
[1763516033311,22.38096,140.9,140.86,9.06179101]
[1763516033513,23.44940374,140.89,140.86,0.1]
[1763516033724,9.78882769,140.87,140.86,0.1]
[1763516034816,9.78882769,140.87,140.86,0.82]
[1763516035296,4.26,140.88,140.86,0.82]
[1763516037416,9.78882769,140.89,140.86,9.78179101]
[1763516037715,9.78882769,140.89,140.86,0.82]
[1763516037924,9.78882769,140.89,140.87,0.72]
[1763516039616,4.26,140.9,140.88,8.96179101]
[1763516039800,4.26,140.92,140.88,8.96179101]
[1763516040114,4.26,140.92,140.89,0.72]
[1763516040322,9.78882769,140.91,140.89,9.68179101]
[1763516040515,9.78882769,140.91,140.9,0.72]
[1763516040918,9.78882769,140.91,140.87,0.72]
[1763516041093,4.26,140.92,140.86,0.1]
[1763516041094,9.78882769,140.87,140.86,0.1]
[1763516041294,9.78882769,140.87,140.86,9.06179101]
[1763516041494,9.78882769,140.88,140.86,0.1]
[1763516041904,9.78882769,140.88,140.87,0.72]
[1763516042095,4.26,140.89,140.87,9.68179101]
[1763516042296,4.26,140.91,140.87,9.68179101]
[1763516042918,4.26,140.91,140.88,0.72]
[1763516047132,9.78882769,140.9,140.86,9.06179101]
[1763516047322,9.78882769,140.9,140.89,0.72]
[1763516049039,9.78882769,140.9,140.86,9.06179101]
[1763516049040,38.8715787,140.9,140.86,0.1]
[1763516049202,4.26,140.91,140.86,0.1]
[1763516049203,36.8715787,140.87,140.86,0.1]
[1763516049403,9.78882769,140.86,140.85,0.2]
[1763516049631,18.7506187,140.86,140.85,0.2]
[1763516049809,23.96016371,140.86,140.85,0.2]
[1763516050001,9.78882769,140.82,140.81,0.1]
[1763516050201,23.0106187,140.82,140.81,0.1]
[1763516050820,19.44761834,140.82,140.81,0.1]
[1763516052126,4.26,140.82,140.81,0.82]
[1763516053110,9.78882769,140.86,140.81,6.21879065]
[1763516053316,9.78882769,140.86,140.83,5.39879065]
[1763516053317,9.78882769,140.84,140.83,5.39879065]
[1763516053628,9.78882769,140.84,140.82,0.71]
[1763516053803,14.04882769,140.83,140.82,0.71]
[1763516055330,9.78882769,140.82,140.81,0.1]
[1763516055536,15.18761834,140.82,140.81,0.81]
[1763516056333,33.30857834,140.82,140.81,0.1]
[1763516056535,33.30857834,140.82,140.81,0.81]
[1763516056714,33.30857834,140.82,140.81,0.1]
[1763516057405,15.18761834,140.82,140.81,0.1]
[1763516057623,2.0,140.87,140.81,0.81]
[1763516057814,14.04882769,140.86,140.81,0.81]
[1763516058014,9.78882769,140.83,140.81,0.81]
[1763516058221,13.32882769,140.82,140.81,0.81]
[1763516058422,9.78882769,140.82,140.81,0.81]
[1763516058731,14.04882769,140.82,140.81,0.81]
[1763516059034,19.44761834,140.82,140.81,0.81]
[1763516060945,14.04882769,140.82,140.81,0.81]
[1763516062230,9.78882769,140.82,140.81,0.81]
[1763516062422,4.26,140.82,140.81,0.81]
[1763516062824,9.78882769,140.85,140.81,6.20879065]
[1763516063023,5.39879065,140.89,140.84,5.39879065]
[1763516063330,4.26,140.88,140.85,5.39879065]
[1763516064137,4.26,140.88,140.84,5.39879065]
[1763516064524,5.39879065,140.86,140.81,0.1]
[1763516064726,4.26,140.85,140.81,0.1]
[1763516065039,9.78882769,140.84,140.81,0.1]
[1763516065259,15.18761834,140.84,140.81,0.1]
[1763516065540,4.26,140.85,140.81,0.1]
[1763516065736,9.65879065,140.85,140.81,0.1]
[1763516066453,9.78882769,140.83,140.81,0.1]
[1763516066951,9.78882769,140.84,140.81,5.49879065]
[1763516068750,4.26,140.84,140.81,5.49879065]
[1763516068962,9.78882769,140.83,140.81,5.49879065]
[1763516069137,9.78882769,140.83,140.82,5.39879065]
[1763516069455,14.04882769,140.84,140.83,18.12096]
[1763516073758,9.78882769,140.83,140.81,0.1]
[1763516074058,9.78882769,140.83,140.81,23.61975065]
[1763516074259,4.26,140.84,140.83,18.12096]
[1763516077240,9.78882769,140.9,140.86,18.12096]
[1763516077538,4.26,140.89,140.86,23.51975065]
[1763516077938,4.26,140.89,140.88,5.39879065]
[1763516078160,5.39879065,140.94,140.88,5.39879065]
[1763516078361,19.29632236,140.93,140.88,5.39879065]
[1763516078559,19.44761834,140.93,140.88,5.39879065]
[1763516078857,19.44761834,140.93,140.87,23.51975065]
[1763516080156,14.04882769,140.93,140.87,23.51975065]
[1763516080355,5.39879065,140.88,140.82,5.39879065]
[1763516080557,5.93390349,140.92,140.81,0.1]
[1763516080558,15.18761834,140.86,140.81,0.1]
[1763516080748,7.40947995,140.92,140.81,0.1]
[1763516080749,15.18761834,140.82,140.81,0.1]
[1763516081062,19.44761834,140.82,140.81,0.1]
[1763516081268,9.78882769,140.81,140.72,0.12]
[1763516081454,15.18761834,140.79,140.71,0.1]
[1763516081769,9.78882769,140.78,140.71,0.1]
[1763516081962,9.78882769,140.72,140.71,0.1]
[1763516082280,20.11761834,140.72,140.71,0.1]
[1763516082437,5.39879065,140.71,140.67,0.1]
[1763516082642,15.85761834,140.68,140.67,0.1]
[1763516082874,4.26,140.68,140.67,0.1]
[1763516083168,4.26,140.71,140.67,5.91879065]